[Event "Titled Tuesday Blitz April 05 Late 2022"]
[White "Kozak, Antoni"]
[Black "Bachmann, Axel"]
[WhiteFideId "21832030"]
[BlackFideId "3700488"]
[WhiteElo "2236"]
[BlackElo "2587"]
[Result "1-0"]
[Round "07"]
[TimeControl "180+1"]
[Date "2022.04.06"]
[WhiteClock "0:00:42"]
[BlackClock "0:00:09"]

1. c4 {[%clk 0:02:57]}  Nf6 {[%clk 0:02:59]} 2. Nf3 {[%clk 0:02:55]}  g6 {[%clk 0:02:59]} 3. Nc3 {[%clk 0:02:55]}  Bg7 {[%clk 0:03:00]} 4. e4 {[%clk 0:02:55]}  d6 {[%clk 0:03:00]} 5. d4 {[%clk 0:02:55]}  O-O {[%clk 0:03:00]} 6. h3 {[%clk 0:02:56]}  e5 {[%clk 0:02:51]} 7. d5 {[%clk 0:02:56]}  Nh5 {[%clk 0:02:51]} 8. g3 {[%clk 0:02:48]}  f5 {[%clk 0:02:37]} 9. exf5 {[%clk 0:02:47]}  gxf5 {[%clk 0:02:36]} 10. Bg5 {[%clk 0:02:44]}  Qe8 {[%clk 0:02:34]} 11. Be2 {[%clk 0:02:44]}  Nf6 {[%clk 0:02:17]} 12. Qc2 {[%clk 0:02:38]}  Na6 {[%clk 0:02:13]} 13. O-O-O {[%clk 0:02:23]}  Bd7 {[%clk 0:02:09]} 14. Nh4 {[%clk 0:02:09]}  Nc5 {[%clk 0:01:58]} 15. f3 {[%clk 0:01:55]}  e4 {[%clk 0:01:34]} 16. Rhe1 {[%clk 0:01:35]}  Qf7 {[%clk 0:01:17]} 17. Be3 {[%clk 0:01:31]}  a5 {[%clk 0:00:51]} 18. f4 {[%clk 0:01:25]}  a4 {[%clk 0:00:49]} 19. a3 {[%clk 0:01:17]}  Rfb8 {[%clk 0:00:31]} 20. Rg1 {[%clk 0:01:13]}  b5 {[%clk 0:00:31]} 21. cxb5 {[%clk 0:01:11]}  Ra5 {[%clk 0:00:20]} 22. Bxc5 {[%clk 0:00:53]}  dxc5 {[%clk 0:00:20]} 23. g4 {[%clk 0:00:53]}  fxg4 {[%clk 0:00:20]} 24. hxg4 {[%clk 0:00:50]}  Bxb5 {[%clk 0:00:16]} 25. Bxb5 {[%clk 0:00:46]}  Raxb5 {[%clk 0:00:16]} 26. Nxb5 {[%clk 0:00:47]}  Rxb5 {[%clk 0:00:17]} 27. Nf5 {[%clk 0:00:46]}  Bh8 {[%clk 0:00:12]} 28. Nh6+ {[%clk 0:00:46]}  Kf8 {[%clk 0:00:11]} 29. Nxf7 {[%clk 0:00:46]}  Kxf7 {[%clk 0:00:12]} 30. d6 {[%clk 0:00:47]}  c6 {[%clk 0:00:10]} 31. d7 {[%clk 0:00:45]}  Nd5 {[%clk 0:00:10]} 32. d8=Q {[%clk 0:00:44]}  Bd4 {[%clk 0:00:09]} 33. Rxd4 {[%clk 0:00:41]}  cxd4 {[%clk 0:00:09]} 34. Qxc6 {[%clk 0:00:42]} 1-0


[Site "https://www.chess.com"]

[Event "Titled Tuesday Blitz April 05 Late 2022"]
[White "Koziorowicz, Michal"]
[Black "Pinheiro, Iung Alicio de O."]
[WhiteFideId "21809194"]
[BlackFideId "2104350"]
[WhiteElo "2235"]
[BlackElo "2559"]
[Result "0-1"]
[Round "07"]
[TimeControl "180+1"]
[Date "2022.04.05"]
[WhiteClock "0:00:02"]
[BlackClock "0:00:07"]

1. e4 {[%clk 0:03:00]}  c5 {[%clk 0:02:59]} 2. Nf3 {[%clk 0:03:01]}  Nc6 {[%clk 0:02:59]} 3. Bb5 {[%clk 0:03:00]}  e6 {[%clk 0:02:59]} 4. O-O {[%clk 0:02:59]}  Nge7 {[%clk 0:02:59]} 5. Re1 {[%clk 0:03:00]}  Nd4 {[%clk 0:02:58]} 6. Bf1 {[%clk 0:02:59]}  Nec6 {[%clk 0:02:56]} 7. c3 {[%clk 0:02:59]}  Nxf3+ {[%clk 0:02:56]} 8. Qxf3 {[%clk 0:02:59]}  Be7 {[%clk 0:02:55]} 9. a4 {[%clk 0:02:56]}  O-O {[%clk 0:02:54]} 10. Na3 {[%clk 0:02:55]}  d6 {[%clk 0:02:32]} 11. Nc2 {[%clk 0:02:53]}  e5 {[%clk 0:02:31]} 12. d3 {[%clk 0:02:45]}  f5 {[%clk 0:02:31]} 13. Qe2 {[%clk 0:02:40]}  f4 {[%clk 0:02:24]} 14. f3 {[%clk 0:02:40]}  g5 {[%clk 0:02:20]} 15. d4 {[%clk 0:02:38]}  Kh8 {[%clk 0:01:58]} 16. b4 {[%clk 0:02:35]}  cxd4 {[%clk 0:01:55]} 17. cxd4 {[%clk 0:02:35]}  exd4 {[%clk 0:01:21]} 18. b5 {[%clk 0:02:35]}  Ne5 {[%clk 0:01:20]} 19. Bb2 {[%clk 0:02:34]}  d3 {[%clk 0:01:19]} 20. Qxd3 {[%clk 0:02:34]}  Bf6 {[%clk 0:01:19]} 21. Qd2 {[%clk 0:02:34]}  g4 {[%clk 0:01:18]} 22. Nd4 {[%clk 0:02:31]}  gxf3 {[%clk 0:01:17]} 23. Nxf3 {[%clk 0:02:31]}  Bg4 {[%clk 0:01:10]} 24. Nd4 {[%clk 0:02:27]}  f3 {[%clk 0:01:03]} 25. Nf5 {[%clk 0:02:14]}  fxg2 {[%clk 0:00:52]} 26. Bxg2 {[%clk 0:02:13]}  Rg8 {[%clk 0:00:48]} 27. Kh1 {[%clk 0:02:12]}  Nf3 {[%clk 0:00:43]} 28. Qc3 {[%clk 0:01:46]}  Bxc3 {[%clk 0:00:38]} 29. Bxc3+ {[%clk 0:01:45]}  Ne5 {[%clk 0:00:39]} 30. Re3 {[%clk 0:00:54]}  Rc8 {[%clk 0:00:36]} 31. Bd4 {[%clk 0:00:48]}  Rc4 {[%clk 0:00:32]} 32. Rc3 {[%clk 0:00:30]}  Rxc3 {[%clk 0:00:25]} 33. Bxc3 {[%clk 0:00:31]}  Bxf5 {[%clk 0:00:25]} 34. exf5 {[%clk 0:00:32]}  Qg5 {[%clk 0:00:25]} 35. Bxb7 {[%clk 0:00:27]}  Qxf5 {[%clk 0:00:25]} 36. a5 {[%clk 0:00:25]}  Qd3 {[%clk 0:00:22]} 37. Rc1 {[%clk 0:00:23]}  Rf8 {[%clk 0:00:18]} 38. Bg2 {[%clk 0:00:21]}  Rf2 {[%clk 0:00:17]} 39. b6 {[%clk 0:00:18]}  axb6 {[%clk 0:00:15]} 40. axb6 {[%clk 0:00:18]}  Rxg2 {[%clk 0:00:16]} 41. Bxe5+ {[%clk 0:00:12]}  dxe5 {[%clk 0:00:15]} 42. b7 {[%clk 0:00:13]}  Qd5 {[%clk 0:00:10]} 43. Rc5 {[%clk 0:00:02]}  Qxb7 {[%clk 0:00:07]} 0-1


[Site "https://www.chess.com"]

[Event "Titled Tuesday Blitz April 05 Late 2022"]
[White "Kujawski, Adam"]
[Black "Reprintsev, Alexander"]
[WhiteFideId "1100920"]
[BlackFideId "14100541"]
[WhiteElo "2053"]
[BlackElo "2108"]
[Result "0-1"]
[Round "07"]
[TimeControl "180+1"]
[Date "2022.04.06"]
[WhiteClock "0:00:01"]
[BlackClock "0:00:04"]

1. e4 {[%clk 0:03:00]}  d5 {[%clk 0:02:57]} 2. exd5 {[%clk 0:03:00]}  Qxd5 {[%clk 0:02:55]} 3. Nc3 {[%clk 0:03:00]}  Qa5 {[%clk 0:02:55]} 4. d4 {[%clk 0:03:00]}  Nf6 {[%clk 0:02:55]} 5. Nf3 {[%clk 0:03:00]}  Nc6 {[%clk 0:02:55]} 6. Bd2 {[%clk 0:02:59]}  a6 {[%clk 0:02:16]} 7. Bc4 {[%clk 0:02:42]}  Qh5 {[%clk 0:02:04]} 8. Ne5 {[%clk 0:02:01]}  Bg4 {[%clk 0:01:37]} 9. Nxg4 {[%clk 0:00:57]}  Qxg4 {[%clk 0:01:31]} 10. Qxg4 {[%clk 0:00:55]}  Nxg4 {[%clk 0:01:31]} 11. f3 {[%clk 0:00:47]}  Nf6 {[%clk 0:01:26]} 12. Be3 {[%clk 0:00:47]}  e6 {[%clk 0:01:20]} 13. Ne4 {[%clk 0:00:46]}  Nd5 {[%clk 0:01:12]} 14. Ke2 {[%clk 0:00:45]}  O-O-O {[%clk 0:01:04]} 15. c3 {[%clk 0:00:44]}  h6 {[%clk 0:01:02]} 16. Rad1 {[%clk 0:00:41]}  f5 {[%clk 0:01:01]} 17. Nf2 {[%clk 0:00:34]}  g5 {[%clk 0:00:57]} 18. Nd3 {[%clk 0:00:31]}  Bg7 {[%clk 0:00:49]} 19. Rhe1 {[%clk 0:00:28]}  Rhe8 {[%clk 0:00:36]} 20. Kf1 {[%clk 0:00:26]}  Nb6 {[%clk 0:00:31]} 21. Bb3 {[%clk 0:00:25]}  e5 {[%clk 0:00:31]} 22. Nxe5 {[%clk 0:00:24]}  Nxe5 {[%clk 0:00:31]} 23. dxe5 {[%clk 0:00:24]}  Rxd1 {[%clk 0:00:29]} 24. Rxd1 {[%clk 0:00:16]}  Bxe5 {[%clk 0:00:29]} 25. Bg1 {[%clk 0:00:14]}  g4 {[%clk 0:00:24]} 26. Re1 {[%clk 0:00:13]}  gxf3 {[%clk 0:00:23]} 27. gxf3 {[%clk 0:00:13]}  Kd8 {[%clk 0:00:19]} 28. Bf2 {[%clk 0:00:12]}  Bf6 {[%clk 0:00:15]} 29. Rxe8+ {[%clk 0:00:12]}  Kxe8 {[%clk 0:00:16]} 30. Bg3 {[%clk 0:00:12]}  c6 {[%clk 0:00:15]} 31. Bc2 {[%clk 0:00:11]}  Nd5 {[%clk 0:00:12]} 32. Ke2 {[%clk 0:00:11]}  f4 {[%clk 0:00:12]} 33. Bf2 {[%clk 0:00:11]}  Kd7 {[%clk 0:00:12]} 34. Be4 {[%clk 0:00:12]}  Ne7 {[%clk 0:00:10]} 35. Kd3 {[%clk 0:00:10]}  Kd6 {[%clk 0:00:10]} 36. b4 {[%clk 0:00:09]}  b5 {[%clk 0:00:10]} 37. Bc5+ {[%clk 0:00:09]}  Kd7 {[%clk 0:00:10]} 38. Bh7 {[%clk 0:00:07]}  Nd5 {[%clk 0:00:08]} 39. Be4 {[%clk 0:00:06]}  Nc7 {[%clk 0:00:06]} 40. c4 {[%clk 0:00:06]}  Ne6 {[%clk 0:00:06]} 41. cxb5 {[%clk 0:00:05]}  axb5 {[%clk 0:00:06]} 42. Bb6 {[%clk 0:00:04]}  Ng5 {[%clk 0:00:06]} 43. Bf5+ {[%clk 0:00:04]}  Kd6 {[%clk 0:00:06]} 44. Bc5+ {[%clk 0:00:04]}  Kc7 {[%clk 0:00:07]} 45. Be4 {[%clk 0:00:02]}  Be5 {[%clk 0:00:07]} 46. Bf5 {[%clk 0:00:02]}  h5 {[%clk 0:00:06]} 47. Be4 {[%clk 0:00:02]}  h4 {[%clk 0:00:07]} 48. Bf5 {[%clk 0:00:02]}  Bd6 {[%clk 0:00:07]} 49. Bxd6+ {[%clk 0:00:02]}  Kxd6 {[%clk 0:00:07]} 50. Be4 {[%clk 0:00:03]}  Ne6 {[%clk 0:00:05]} 51. Kc3 {[%clk 0:00:02]}  Ng5 {[%clk 0:00:04]} 52. Kd4 {[%clk 0:00:01]}  Nh3 {[%clk 0:00:04]} 53. Bd3 {[%clk 0:00:01]}  Nf2 {[%clk 0:00:04]} 54. Be2 {[%clk 0:00:01]}  Ke6 {[%clk 0:00:04]} 0-1


[Site "https://www.chess.com"]

[Event "Titled Tuesday Blitz April 05 Late 2022"]
[White "Levin, Anthony"]
[Black "Wesolowska, Hanna"]
[WhiteFideId "30940680"]
[BlackFideId "1104683"]
[WhiteElo "2042"]
[BlackElo "2345"]
[Result "1-0"]
[Round "07"]
[TimeControl "180+1"]
[Date "2022.04.06"]
[WhiteClock "0:00:03"]
[BlackClock "0:00:08"]

1. d4 {[%clk 0:02:56]}  c5 {[%clk 0:02:54]} 2. d5 {[%clk 0:02:56]}  Nf6 {[%clk 0:02:53]} 3. Nc3 {[%clk 0:02:56]}  g6 {[%clk 0:02:53]} 4. e4 {[%clk 0:02:55]}  d6 {[%clk 0:02:53]} 5. Bb5+ {[%clk 0:02:54]}  Bd7 {[%clk 0:02:53]} 6. a4 {[%clk 0:02:54]}  Bg7 {[%clk 0:02:53]} 7. Nf3 {[%clk 0:02:54]}  O-O {[%clk 0:02:53]} 8. O-O {[%clk 0:02:54]}  Na6 {[%clk 0:02:54]} 9. h3 {[%clk 0:02:47]}  Nc7 {[%clk 0:02:53]} 10. Bc4 {[%clk 0:02:44]}  b6 {[%clk 0:02:53]} 11. Re1 {[%clk 0:02:34]}  a6 {[%clk 0:02:52]} 12. e5 {[%clk 0:02:34]}  Nfe8 {[%clk 0:02:52]} 13. e6 {[%clk 0:02:29]}  fxe6 {[%clk 0:02:46]} 14. dxe6 {[%clk 0:02:30]}  Bc6 {[%clk 0:02:46]} 15. Nd5 {[%clk 0:02:18]}  Nf6 {[%clk 0:02:42]} 16. Nxf6+ {[%clk 0:02:05]}  Rxf6 {[%clk 0:02:31]} 17. Bg5 {[%clk 0:02:05]}  Bxf3 {[%clk 0:02:23]} 18. gxf3 {[%clk 0:02:03]}  Rf5 {[%clk 0:02:23]} 19. Be3 {[%clk 0:01:57]}  Bxb2 {[%clk 0:02:23]} 20. Rb1 {[%clk 0:01:57]}  b5 {[%clk 0:02:12]} 21. axb5 {[%clk 0:01:55]}  axb5 {[%clk 0:02:12]} 22. Bd3 {[%clk 0:01:47]}  Rd5 {[%clk 0:01:44]} 23. Qe2 {[%clk 0:01:35]}  Ra2 {[%clk 0:01:41]} 24. Bxb5 {[%clk 0:01:27]}  Bc3 {[%clk 0:01:35]} 25. Bc4 {[%clk 0:01:18]}  Ra4 {[%clk 0:01:12]} 26. Bxd5 {[%clk 0:00:54]}  Nxd5 {[%clk 0:01:11]} 27. Red1 {[%clk 0:00:50]}  Nf4 {[%clk 0:01:00]} 28. Bxf4 {[%clk 0:00:49]}  Rxf4 {[%clk 0:01:01]} 29. Qe3 {[%clk 0:00:47]}  Be5 {[%clk 0:01:01]} 30. Qxe5 {[%clk 0:00:47]}  Qf8 {[%clk 0:01:00]} 31. Qe2 {[%clk 0:00:33]}  Qf6 {[%clk 0:00:56]} 32. Rb8+ {[%clk 0:00:25]}  Kg7 {[%clk 0:00:56]} 33. Rd5 {[%clk 0:00:18]}  Rxf3 {[%clk 0:00:51]} 34. Rb7 {[%clk 0:00:15]}  Rxh3 {[%clk 0:00:48]} 35. Kg2 {[%clk 0:00:09]}  Rh4 {[%clk 0:00:40]} 36. Qf3 {[%clk 0:00:08]}  Rf4 {[%clk 0:00:40]} 37. Rxe7+ {[%clk 0:00:07]}  Kg8 {[%clk 0:00:34]} 38. Re8+ {[%clk 0:00:06]}  Kg7 {[%clk 0:00:34]} 39. Qe3 {[%clk 0:00:04]}  Rg4+ {[%clk 0:00:30]} 40. Kf1 {[%clk 0:00:03]}  Qa1+ {[%clk 0:00:27]} 41. Ke2 {[%clk 0:00:04]}  Qa6+ {[%clk 0:00:25]} 42. Rd3 {[%clk 0:00:03]}  Qc4 {[%clk 0:00:22]} 43. Re7+ {[%clk 0:00:03]}  Kg8 {[%clk 0:00:20]} 44. Rf7 {[%clk 0:00:04]}  Re4 {[%clk 0:00:19]} 45. Rf3 {[%clk 0:00:02]}  Rxe3+ {[%clk 0:00:19]} 46. Rxe3 {[%clk 0:00:03]}  Qg4+ {[%clk 0:00:19]} 47. Kd2 {[%clk 0:00:02]}  Kf8 {[%clk 0:00:19]} 48. e7+ {[%clk 0:00:02]}  Ke8 {[%clk 0:00:20]} 49. Rxd6 {[%clk 0:00:03]}  Qb4+ {[%clk 0:00:19]} 50. Kd1 {[%clk 0:00:02]}  Qb1+ {[%clk 0:00:18]} 51. Kd2 {[%clk 0:00:03]}  Qb4+ {[%clk 0:00:18]} 52. Ke2 {[%clk 0:00:04]}  Qg4+ {[%clk 0:00:16]} 53. Ke1 {[%clk 0:00:04]}  Qb4+ {[%clk 0:00:15]} 54. Kf1 {[%clk 0:00:04]}  Qb5+ {[%clk 0:00:12]} 55. Re2 {[%clk 0:00:04]}  Qb1+ {[%clk 0:00:08]} 56. Kg2 {[%clk 0:00:05]}  Qb7+ {[%clk 0:00:08]} 57. f3 {[%clk 0:00:03]} 1-0


[Site "https://www.chess.com"]

[Event "Titled Tuesday Blitz April 05 Late 2022"]
[White "Mangialardo, Tiago Carvalho"]
[Black "Tsukerman, Julia"]
[WhiteFideId "2130718"]
[BlackFideId "2621649"]
[WhiteElo "2048"]
[BlackElo "2164"]
[Result "0-1"]
[Round "07"]
[TimeControl "180+1"]
[Date "2022.04.06"]
[WhiteClock "0:00:01"]
[BlackClock "0:00:49"]

1. e4 {[%clk 0:03:00]}  c5 {[%clk 0:02:56]} 2. Nf3 {[%clk 0:03:00]}  d6 {[%clk 0:02:56]} 3. d4 {[%clk 0:03:00]}  cxd4 {[%clk 0:02:57]} 4. Nxd4 {[%clk 0:03:00]}  Nf6 {[%clk 0:02:58]} 5. Nc3 {[%clk 0:02:59]}  a6 {[%clk 0:02:58]} 6. Be3 {[%clk 0:02:59]}  e5 {[%clk 0:02:56]} 7. Nf3 {[%clk 0:02:56]}  Be6 {[%clk 0:02:57]} 8. Bd3 {[%clk 0:02:55]}  h6 {[%clk 0:02:56]} 9. Qd2 {[%clk 0:02:54]}  Nc6 {[%clk 0:02:57]} 10. O-O {[%clk 0:02:51]}  Be7 {[%clk 0:02:56]} 11. a4 {[%clk 0:02:44]}  O-O {[%clk 0:02:52]} 12. Nd5 {[%clk 0:02:31]}  Bxd5 {[%clk 0:02:37]} 13. exd5 {[%clk 0:02:31]}  Nb8 {[%clk 0:02:28]} 14. Bc4 {[%clk 0:01:38]}  Nbd7 {[%clk 0:02:15]} 15. a5 {[%clk 0:01:34]}  Rc8 {[%clk 0:02:14]} 16. Qb4 {[%clk 0:01:21]}  Qc7 {[%clk 0:02:11]} 17. Bb3 {[%clk 0:01:18]}  Nc5 {[%clk 0:01:57]} 18. c3 {[%clk 0:01:01]}  Rfd8 {[%clk 0:01:53]} 19. Rfd1 {[%clk 0:00:50]}  Nxb3 {[%clk 0:01:50]} 20. Qxb3 {[%clk 0:00:50]}  Ne4 {[%clk 0:01:50]} 21. Bb6 {[%clk 0:00:49]}  Qd7 {[%clk 0:01:45]} 22. Bxd8 {[%clk 0:00:48]}  Rxd8 {[%clk 0:01:43]} 23. Qb4 {[%clk 0:00:46]}  Nc5 {[%clk 0:01:42]} 24. Nd2 {[%clk 0:00:40]}  f5 {[%clk 0:01:42]} 25. Nb3 {[%clk 0:00:39]}  Ne4 {[%clk 0:01:41]} 26. f3 {[%clk 0:00:38]}  Nf6 {[%clk 0:01:41]} 27. Kh1 {[%clk 0:00:38]}  g5 {[%clk 0:01:41]} 28. Rd2 {[%clk 0:00:36]}  g4 {[%clk 0:01:41]} 29. fxg4 {[%clk 0:00:35]}  Nxg4 {[%clk 0:01:41]} 30. Re2 {[%clk 0:00:28]}  Bg5 {[%clk 0:01:37]} 31. Nd2 {[%clk 0:00:28]}  Qg7 {[%clk 0:01:26]} 32. Nf1 {[%clk 0:00:27]}  Bf4 {[%clk 0:01:22]} 33. g3 {[%clk 0:00:20]}  Bg5 {[%clk 0:01:22]} 34. Rae1 {[%clk 0:00:17]}  Qf7 {[%clk 0:01:22]} 35. Qb3 {[%clk 0:00:12]}  Rc8 {[%clk 0:01:21]} 36. Nd2 {[%clk 0:00:11]}  Rc5 {[%clk 0:01:21]} 37. c4 {[%clk 0:00:10]}  Rxa5 {[%clk 0:01:20]} 38. Nf3 {[%clk 0:00:10]}  Be7 {[%clk 0:01:19]} 39. Qb4 {[%clk 0:00:11]}  Rc5 {[%clk 0:01:18]} 40. Qxb7 {[%clk 0:00:09]}  Rxc4 {[%clk 0:01:17]} 41. Qxa6 {[%clk 0:00:08]}  Rb4 {[%clk 0:01:15]} 42. Qc8+ {[%clk 0:00:07]}  Kg7 {[%clk 0:01:13]} 43. Qc3 {[%clk 0:00:07]}  Rb5 {[%clk 0:01:11]} 44. h3 {[%clk 0:00:06]}  Nf6 {[%clk 0:01:10]} 45. Kh2 {[%clk 0:00:04]}  Rxd5 {[%clk 0:01:09]} 46. Qc4 {[%clk 0:00:04]}  Qe8 {[%clk 0:01:03]} 47. Nd2 {[%clk 0:00:03]}  Rc5 {[%clk 0:01:03]} 48. Qb3 {[%clk 0:00:03]}  Qc6 {[%clk 0:01:02]} 49. Qd3 {[%clk 0:00:03]}  Qc8 {[%clk 0:01:00]} 50. b3 {[%clk 0:00:03]}  Rd5 {[%clk 0:00:59]} 51. Qe3 {[%clk 0:00:03]}  Rc5 {[%clk 0:00:57]} 52. Nc4 {[%clk 0:00:03]}  e4 {[%clk 0:00:54]} 53. Qf4 {[%clk 0:00:02]}  d5 {[%clk 0:00:53]} 54. Ne5 {[%clk 0:00:02]}  Rc3 {[%clk 0:00:53]} 55. g4 {[%clk 0:00:01]}  Bd6 {[%clk 0:00:49]} 0-1


[Site "https://www.chess.com"]

[Event "Titled Tuesday Blitz April 05 Late 2022"]
[White "Mekhitarian, Krikor Sevag"]
[Black "Chernomordik, Pavel"]
[WhiteFideId "2107660"]
[BlackFideId "2804530"]
[WhiteElo "2598"]
[BlackElo "2220"]
[Result "1-0"]
[Round "07"]
[TimeControl "180+1"]
[Date "2022.04.05"]
[WhiteClock "0:00:18"]
[BlackClock "0:00:19"]

1. Nf3 {[%clk 0:03:00]}  g6 {[%clk 0:03:00]} 2. c4 {[%clk 0:02:56]}  Bg7 {[%clk 0:03:00]} 3. Nc3 {[%clk 0:02:54]}  e5 {[%clk 0:03:00]} 4. g3 {[%clk 0:02:45]}  Nc6 {[%clk 0:02:59]} 5. Bg2 {[%clk 0:02:45]}  d6 {[%clk 0:02:59]} 6. d3 {[%clk 0:02:45]}  h6 {[%clk 0:02:59]} 7. O-O {[%clk 0:02:46]}  Be6 {[%clk 0:02:59]} 8. Rb1 {[%clk 0:02:46]}  Qd7 {[%clk 0:02:58]} 9. b4 {[%clk 0:02:45]}  Nge7 {[%clk 0:02:58]} 10. b5 {[%clk 0:02:45]}  Nd8 {[%clk 0:02:58]} 11. a4 {[%clk 0:02:44]}  O-O {[%clk 0:02:55]} 12. a5 {[%clk 0:02:44]}  Rc8 {[%clk 0:02:53]} 13. Ba3 {[%clk 0:02:23]}  Bh3 {[%clk 0:02:50]} 14. Bxh3 {[%clk 0:02:06]}  Qxh3 {[%clk 0:02:49]} 15. c5 {[%clk 0:02:07]}  Qd7 {[%clk 0:02:40]} 16. cxd6 {[%clk 0:01:59]}  cxd6 {[%clk 0:02:39]} 17. Qb3 {[%clk 0:01:59]}  Rxc3 {[%clk 0:02:21]} 18. Qxc3 {[%clk 0:01:54]}  e4 {[%clk 0:02:21]} 19. Nd4 {[%clk 0:01:52]}  Ne6 {[%clk 0:02:12]} 20. e3 {[%clk 0:01:48]}  Nf5 {[%clk 0:02:01]} 21. dxe4 {[%clk 0:01:42]}  Nfxd4 {[%clk 0:01:56]} 22. exd4 {[%clk 0:01:43]}  Nxd4 {[%clk 0:01:55]} 23. Qd3 {[%clk 0:01:42]}  f5 {[%clk 0:01:37]} 24. f4 {[%clk 0:01:15]}  fxe4 {[%clk 0:01:36]} 25. Qxe4 {[%clk 0:01:16]}  Re8 {[%clk 0:01:33]} 26. Qd5+ {[%clk 0:01:08]}  Kh7 {[%clk 0:01:32]} 27. Bb2 {[%clk 0:00:41]}  Nf5 {[%clk 0:01:13]} 28. Bxg7 {[%clk 0:00:40]}  Ne3 {[%clk 0:01:11]} 29. Qd3 {[%clk 0:00:33]}  Qh3 {[%clk 0:00:59]} 30. Rf2 {[%clk 0:00:28]}  Kxg7 {[%clk 0:00:46]} 31. Re1 {[%clk 0:00:25]}  Ng4 {[%clk 0:00:21]} 32. Rxe8 {[%clk 0:00:23]}  Nxf2 {[%clk 0:00:21]} 33. Kxf2 {[%clk 0:00:24]}  Qxh2+ {[%clk 0:00:21]} 34. Ke1 {[%clk 0:00:22]}  Qg1+ {[%clk 0:00:21]} 35. Kd2 {[%clk 0:00:19]}  Qc5 {[%clk 0:00:19]} 36. Qc3+ {[%clk 0:00:18]} 1-0


[Site "https://www.chess.com"]

[Event "Titled Tuesday Blitz April 05 Late 2022"]
[White "Mickiewicz, Piotr"]
[Black "Korchmar, Vasiliy"]
[WhiteFideId "1114891"]
[BlackFideId "24131750"]
[WhiteElo "2266"]
[BlackElo "2370"]
[Result "0-1"]
[Round "07"]
[TimeControl "180+1"]
[Date "2022.04.05"]
[WhiteClock "0:00:02"]
[BlackClock "0:00:04"]

1. Nf3 {[%clk 0:03:00]}  d5 {[%clk 0:02:59]} 2. g3 {[%clk 0:03:00]}  g6 {[%clk 0:02:59]} 3. Bg2 {[%clk 0:03:01]}  Bg7 {[%clk 0:03:00]} 4. c4 {[%clk 0:03:00]}  c6 {[%clk 0:02:57]} 5. Qc2 {[%clk 0:02:56]}  e5 {[%clk 0:02:57]} 6. d3 {[%clk 0:02:48]}  Ne7 {[%clk 0:02:57]} 7. O-O {[%clk 0:02:47]}  O-O {[%clk 0:02:57]} 8. Nc3 {[%clk 0:02:45]}  h6 {[%clk 0:02:55]} 9. Rb1 {[%clk 0:02:41]}  a5 {[%clk 0:02:54]} 10. a3 {[%clk 0:02:40]}  Be6 {[%clk 0:02:54]} 11. cxd5 {[%clk 0:02:21]}  cxd5 {[%clk 0:02:55]} 12. b4 {[%clk 0:02:20]}  Qc8 {[%clk 0:02:35]} 13. Ne1 {[%clk 0:02:05]}  axb4 {[%clk 0:02:28]} 14. axb4 {[%clk 0:02:03]}  Nbc6 {[%clk 0:02:10]} 15. Na4 {[%clk 0:01:57]}  Nd4 {[%clk 0:02:07]} 16. Qd1 {[%clk 0:01:38]}  Nxe2+ {[%clk 0:01:54]} 17. Qxe2 {[%clk 0:01:39]}  Rxa4 {[%clk 0:01:54]} 18. Nf3 {[%clk 0:01:21]}  e4 {[%clk 0:01:53]} 19. Nd2 {[%clk 0:01:02]}  f5 {[%clk 0:01:34]} 20. Bb2 {[%clk 0:00:57]}  Ra2 {[%clk 0:01:20]} 21. Rfc1 {[%clk 0:00:50]}  Qd7 {[%clk 0:01:19]} 22. Bxg7 {[%clk 0:00:44]}  Kxg7 {[%clk 0:01:20]} 23. Qe3 {[%clk 0:00:42]}  d4 {[%clk 0:01:18]} 24. Qf4 {[%clk 0:00:41]}  e3 {[%clk 0:00:52]} 25. Qe5+ {[%clk 0:00:39]}  Kf7 {[%clk 0:00:50]} 26. Rc7 {[%clk 0:00:31]}  Qd8 {[%clk 0:00:50]} 27. Nf3 {[%clk 0:00:17]}  exf2+ {[%clk 0:00:50]} 28. Kh1 {[%clk 0:00:17]}  Ra6 {[%clk 0:00:13]} 29. Nxd4 {[%clk 0:00:08]}  Rd6 {[%clk 0:00:13]} 30. Nxe6 {[%clk 0:00:05]}  Rxe6 {[%clk 0:00:14]} 31. Bd5 {[%clk 0:00:05]}  Qxd5+ {[%clk 0:00:04]} 32. Qxd5 {[%clk 0:00:06]}  Rd8 {[%clk 0:00:02]} 33. Qxd8 {[%clk 0:00:03]}  Re1+ {[%clk 0:00:02]} 34. Rxe1 {[%clk 0:00:01]}  fxe1=Q+ {[%clk 0:00:03]} 35. Kg2 {[%clk 0:00:01]}  Qe2+ {[%clk 0:00:04]} 36. Kh3 {[%clk 0:00:01]}  Qf1+ {[%clk 0:00:03]} 37. Kh4 {[%clk 0:00:01]}  g5+ {[%clk 0:00:03]} 38. Kh5 {[%clk 0:00:02]}  Qh3# {[%clk 0:00:04]} 0-1


[Site "https://www.chess.com"]

[Event "Titled Tuesday Blitz April 05 Late 2022"]
[White "Moral Garcia, Serafin"]
[Black "Janturin, Artur"]
[WhiteFideId "2201925"]
[BlackFideId "4130022"]
[WhiteElo "2228"]
[BlackElo "2345"]
[Result "1-0"]
[Round "07"]
[TimeControl "180+1"]
[Date "2022.04.06"]
[WhiteClock "0:02:14"]
[BlackClock "0:00:14"]

1. e4 {[%clk 0:02:59]}  a6 {[%clk 0:02:57]} 2. d4 {[%clk 0:02:59]}  b5 {[%clk 0:02:58]} 3. Nc3 {[%clk 0:02:54]}  Bb7 {[%clk 0:02:58]} 4. Bd3 {[%clk 0:02:54]}  Nf6 {[%clk 0:02:46]} 5. Qe2 {[%clk 0:02:51]}  e6 {[%clk 0:02:45]} 6. Nf3 {[%clk 0:02:50]}  c5 {[%clk 0:02:36]} 7. dxc5 {[%clk 0:02:48]}  Bxc5 {[%clk 0:02:35]} 8. O-O {[%clk 0:02:48]}  Nc6 {[%clk 0:02:34]} 9. e5 {[%clk 0:02:46]}  Ng4 {[%clk 0:01:48]} 10. h3 {[%clk 0:02:43]}  h5 {[%clk 0:01:02]} 11. hxg4 {[%clk 0:02:43]}  hxg4 {[%clk 0:01:02]} 12. Ng5 {[%clk 0:02:43]}  g3 {[%clk 0:00:27]} 13. Be3 {[%clk 0:02:32]}  Nd4 {[%clk 0:00:22]} 14. Qg4 {[%clk 0:02:24]}  Ke7 {[%clk 0:00:14]} 15. Qxg3 {[%clk 0:02:14]} 1-0


[Site "https://www.chess.com"]